bitfinex/quotes_ETHUSD_20240711
["timestamp","ask_amount","ask_price","bid_price","bid_amount"]
[1720713411605,3.76035392,3116.6,3115.2,3.21001]
[1720713412413,3.76035392,3116.6,3115.2,3.21]
[1720713412712,3.10885036,3116.6,3115.3,3.2099]
[1720713413306,2.767,3116.6,3114.8,3.531465]
[1720713413497,2.767,3116.6,3115.5,3.20969]
[1720713413498,2.4451,3116.6,3115.5,3.20969]
[1720713413664,2.4451,3116.6,3115.3,3.20993]
[1720713413864,2.4451,3116.6,3114.9,3.594]
[1720713413865,2.68961,3116.6,3115.4,3.530833]
[1720713414089,2.68961,3116.6,3115.4,0.320993]
[1720713414310,2.68961,3116.6,3115.1,3.21011]
[1720713414510,2.68961,3116.6,3115.1,6.42022]
[1720713414715,2.68961,3116.6,3115.3,3.20994]
[1720713415871,2.68961,3116.6,3114.8,0.321045]
[1720713415872,2.68961,3116.6,3115.4,3.20985]
[1720713416116,2.4451,3116.6,3115.7,3.20954]
[1720713416631,2.4451,3116.6,3115.9,3.20934]
[1720713416774,2.71858589,3117.1,3116.0,3.20918]
[1720713417410,2.2974,3117.1,3116.1,3.20913]
[1720713417814,2.2974,3117.1,3115.5,3.20965]
[1720713418125,1.1112333,3117.0,3115.6,3.20962]
[1720713418276,1.1112333,3116.9,3115.0,3.21025]
[1720713418618,1.76218293,3116.9,3115.4,3.20977]
[1720713418822,2.3632,3116.7,3114.8,0.321045]
[1720713419122,1.76218293,3116.6,3114.8,0.321045]
[1720713419274,3.01414963,3116.7,3115.1,3.21015]
[1720713419477,0.65094963,3116.5,3115.0,3.21021]
[1720713419689,1.11137756,3116.4,3115.0,3.21021]
[1720713419892,1.93868666,3116.3,3115.9,0.2]
[1720713420177,4.14135394,3116.2,3115.9,0.2]
[1720713420410,1.11150431,3116.1,3115.9,0.2]
[1720713420795,1.76245394,3116.1,3115.9,0.16862036]
[1720713420989,2.9528006,3116.0,3115.9,0.16862036]
[1720713421324,1.97637615,3116.0,3115.9,0.08528989]
[1720713421874,2.6271318,3116.0,3115.9,0.08528989]
[1720713422143,1.51562749,3116.0,3115.9,0.08528989]
[1720713422444,1.97652004,3116.0,3115.9,0.08528989]
[1720713422641,1.1116482,3116.0,3115.9,0.08528989]
[1720713422846,1.11151119,3116.0,3115.9,0.08528989]
[1720713423942,1.11151119,3116.0,3115.9,0.28528989]
[1720713424456,0.65075565,3116.7,3115.9,0.28528989]
[1720713424603,1.11132581,3116.6,3115.9,0.28528989]
[1720713424806,1.11132581,3116.5,3115.9,0.28528989]
[1720713425001,2.97055565,3116.4,3115.9,0.28528989]
[1720713425246,0.65075565,3116.2,3115.9,0.28528989]
[1720713425414,1.11132581,3116.1,3115.9,0.28528989]
[1720713425601,1.11132581,3116.2,3115.9,0.28528989]
[1720713425800,1.51951396,3116.2,3115.9,0.28528989]
[1720713426004,1.11132581,3116.1,3115.9,0.28528989]
[1720713426903,0.40818815,3116.2,3115.9,0.28528989]
[1720713427142,2.3198,3116.4,3115.9,0.28528989]
[1720713427344,1.1114384,3116.3,3115.9,0.28528989]
[1720713427527,1.1114384,3116.2,3115.9,0.28528989]
[1720713427716,1.1114384,3116.1,3115.9,0.28528989]
[1720713427914,1.1114384,3116.3,3115.9,0.28528989]
[1720713428202,1.13886687,3116.7,3115.9,0.48528989]
[1720713428203,0.81344861,3116.7,3115.9,0.48528989]
[1720713428440,1.11132143,3116.6,3115.9,0.48528989]
[1720713428618,1.11132143,3116.5,3115.9,0.85477288]
[1720713428814,1.62379926,3117.2,3115.9,0.85477288]
[1720713429044,1.62379926,3117.2,3115.9,0.48528989]
[1720713429045,0.65149207,3116.8,3115.9,0.48528989]
[1720713429210,0.9772381,3117.0,3115.9,0.48528989]
[1720713429211,1.76280275,3116.7,3115.9,0.48528989]
[1720713429407,1.30298414,3117.0,3115.9,0.48528989]
[1720713429408,1.11131068,3116.6,3115.9,0.48528989]
[1720713429747,1.30298414,3117.1,3115.9,0.48528989]
[1720713429748,0.65149207,3117.1,3116.1,3.20913]
[1720713429942,1.1111956,3117.0,3116.2,3.20903]
[1720713430143,1.1111956,3116.9,3116.3,0.38507417]
[1720713430311,0.65149207,3117.3,3116.3,0.38507417]
[1720713430506,1.11113826,3117.2,3116.3,0.38507417]
[1720713430711,1.11113826,3117.1,3116.4,3.20877]
[1720713430946,0.65149207,3117.5,3116.5,3.20871]
[1720713431109,0.3219,3117.6,3116.5,3.20871]
[1720713431110,1.11104382,3117.4,3116.5,3.8825483]
[1720713431311,0.97339207,3117.6,3116.5,3.8825483]
[1720713431512,1.11102487,3117.5,3116.5,3.8825483]
[1720713431705,1.11102487,3117.4,3116.5,3.8825483]
[1720713431910,1.11102487,3117.3,3116.5,3.8825483]
[1720713432112,1.11102487,3117.4,3116.6,0.70913183]
[1720713432345,0.97339207,3117.6,3116.6,3.91765183]
[1720713432552,1.11100831,3117.5,3116.7,3.20849]
[1720713432710,0.97339207,3117.6,3116.6,3.20854]
[1720713433083,1.11101614,3117.5,3116.6,6.41707]
[1720713433260,0.97339207,3117.6,3116.6,6.41708]
[1720713433412,1.11101586,3117.5,3116.7,3.20852]
[1720713433613,0.97339207,3117.6,3116.8,0.641705]
[1720713433813,1.11100408,3117.5,3116.8,0.641705]
[1720713434059,1.11100408,3117.4,3116.7,3.20852]
[1720713434225,1.11102421,3117.5,3116.5,5.6839]
[1720713434561,0.65149207,3117.6,3116.5,3.20866]
[1720713434861,0.65149207,3117.4,3116.5,3.20866]
[1720713435653,0.65149207,3117.4,3116.6,3.20861]
[1720713435654,1.11106142,3117.3,3116.6,3.20861]
[1720713435814,1.11106142,3117.3,3116.7,0.641726]
[1720713436015,0.65210447,3117.5,3116.6,3.20861]
[1720713436235,1.11105407,3117.4,3116.6,3.20861]
[1720713436549,0.65210447,3117.4,3116.4,3.20877]
[1720713436712,0.65210447,3117.5,3116.5,3.20867]
[1720713437045,1.11102366,3117.4,3116.3,0.320903]
[1720713437256,1.28733647,3117.3,3116.3,3.20892]
[1720713437464,0.17631281,3117.3,3116.0,5.60088]
[1720713437609,0.65210447,3117.4,3116.3,3.20887]
[1720713437811,0.65210447,3117.4,3116.2,3.20901]
[1720713438055,1.76316857,3117.3,3116.0,5.60086]
[1720713438351,0.65210447,3116.9,3115.9,0.88528989]
[1720713438558,0.65210447,3116.7,3115.9,0.88528989]
[1720713438762,0.92625711,3116.7,3115.9,0.88528989]
[1720713438928,0.65210447,3116.8,3116.0,3.20917]
[1720713439131,0.65210447,3117.0,3115.9,4.09461989]
[1720713439455,0.65210447,3116.6,3115.9,0.88528989]
[1720713439624,0.65210447,3116.2,3115.9,0.88528989]
[1720713439825,0.65210447,3116.3,3115.9,0.88528989]
[1720713440221,1.76357734,3116.2,3115.9,0.88528989]
[1720713440552,1.76357734,3116.1,3115.9,0.88528989]
[1720713440777,1.76357734,3116.1,3115.9,0.74753074]
[1720713440778,2.58356867,3116.0,3115.9,0.74753074]
[1720713440990,9.1164252,3116.0,3115.9,0.0773151]
[1720713441184,9.1164252,3116.0,3114.1,7.24]
[1720713441185,3.20945,3115.8,3114.1,7.24]
[1720713441407,1.63018523,3115.3,3114.2,0.724]
[1720713441685,0.65207409,3115.1,3114.0,3.21122]
[1720713441889,0.65207409,3115.0,3114.0,3.21127]
[1720713442053,0.65207409,3115.0,3113.9,2.4476]
[1720713442054,0.65207409,3115.1,3114.3,3.21091]
[1720713442252,0.65207409,3115.2,3113.9,5.65896]
[1720713442474,0.65207409,3115.2,3114.0,3.21124]
[1720713442783,0.65207409,3115.3,3114.3,3.2109]
[1720713443146,0.65207409,3115.3,3114.1,3.777034]
[1720713443493,0.65207409,3115.4,3114.2,3.211]
[1720713443782,0.65207409,3115.3,3114.3,3.21097]
[1720713443995,0.65207409,3115.3,3114.2,3.211]
[1720713443996,0.65207409,3115.3,3114.5,3.21077]
[1720713444205,0.65205779,3115.5,3114.9,3.21036]
[1720713444485,0.65205779,3115.9,3114.9,3.21036]
[1720713444644,0.97808669,3116.1,3115.2,3.20999]
[1720713444645,0.65205779,3116.1,3115.2,3.20999]
[1720713444840,0.65205779,3116.1,3115.3,0.064188]
[1720713445042,0.65205779,3116.1,3115.4,0.3274178]
[1720713445285,0.65205779,3116.2,3115.4,0.3274178]
[1720713445437,0.65205779,3116.1,3115.1,3.2101]
[1720713445669,0.65205779,3116.1,3114.9,3.21029]
[1720713445874,0.65205779,3116.0,3114.9,3.21029]
[1720713446075,0.65205779,3116.0,3114.7,2.4865]
[1720713446276,0.65205779,3116.0,3114.3,6.25495]
[1720713446277,0.65205779,3115.7,3114.5,3.21072]
[1720713446515,2.08972974,3115.9,3114.6,0.321072]
[1720713446516,0.65205779,3115.8,3114.6,0.321072]
[1720713446720,0.65205779,3115.7,3114.6,0.321072]
[1720713446940,0.65205779,3115.8,3114.6,0.321072]
[1720713447229,0.65220885,3115.7,3114.6,0.321072]
[1720713447382,0.65220885,3115.9,3114.7,3.21048]
[1720713447723,0.65220885,3116.0,3115.0,3.21018]
[1720713447891,0.65220885,3116.1,3115.3,3.20995]
[1720713448237,0.65220885,3116.2,3115.5,3.2097]
[1720713448606,0.65220885,3116.2,3115.3,3.2099]
[1720713448931,0.65220885,3116.4,3115.4,3.20978]
[1720713449138,0.65220885,3116.3,3115.5,0.320978]
[1720713449295,0.65220885,3116.4,3115.5,0.320978]
[1720713449495,0.65220885,3116.3,3115.5,0.320978]
[1720713449700,1.3044177,3116.6,3115.6,3.20956]
[1720713449701,0.65220885,3116.4,3115.6,3.20956]
[1720713449898,0.65220885,3116.6,3115.8,3.20944]
[1720713450134,0.65220885,3116.6,3115.9,0.39153905]
[1720713450316,0.65292715,3116.7,3115.9,0.39153905]
[1720713450502,0.65292715,3116.7,3116.0,2.2527]
[1720713450707,1.30585431,3117.0,3116.2,3.20901]
[1720713450708,0.65292715,3117.0,3116.2,3.20901]
[1720713451340,0.65292715,3117.0,3116.2,6.41796]
[1720713451503,0.65292715,3117.1,3116.3,0.641796]
[1720713451704,0.65292715,3117.2,3116.3,0.641796]
[1720713452024,0.65292715,3117.1,3116.3,0.641796]
[1720713452233,0.65292715,3117.0,3116.0,5.46185]
[1720713452599,0.65292715,3117.0,3116.2,3.20896]
[1720713453118,0.65292715,3117.1,3116.2,3.20896]
[1720713453336,0.65292715,3117.1,3116.0,2.2527]
[1720713453534,0.65292715,3116.8,3116.0,2.2527]
[1720713453867,0.65292715,3117.0,3116.1,0.25800618]
[1720713454018,0.65292715,3116.9,3116.1,0.25800618]
[1720713454225,0.65292715,3117.0,3116.1,0.25800618]
[1720713454557,0.65292715,3117.0,3116.3,3.20892]
[1720713454870,1.30585431,3117.3,3116.4,0.06416632]
[1720713454871,0.65292715,3117.1,3116.4,0.06416632]
[1720713455153,0.97939073,3117.3,3116.5,0.32730863]
[1720713455154,0.65292715,3117.3,3116.5,0.32730863]
[1720713455462,0.65292715,3116.9,3115.5,2.3859]
[1720713455626,0.65292715,3117.0,3116.2,3.20898]
[1720713455828,0.65292715,3117.1,3116.2,3.529878]
[1720713456025,0.65292715,3117.0,3116.2,6.738818]
[1720713456437,0.65292715,3117.1,3116.4,6.41757]
[1720713456637,0.65292715,3117.2,3116.4,6.41757]
[1720713456851,0.97939073,3117.4,3116.5,3.2087]
[1720713456852,0.65292715,3117.3,3116.5,3.2087]
[1720713457057,0.65292715,3117.3,3116.6,3.2086]
[1720713457724,0.65292715,3117.5,3116.7,3.20851]
[1720713457923,0.65292715,3117.5,3116.8,3.27257029]
[1720713458164,0.65292715,3117.6,3116.8,6.48091029]
[1720713458387,0.65292715,3117.6,3116.2,3.364898]
[1720713458525,0.65292715,3117.3,3116.2,0.320898]
[1720713458725,0.65292715,3117.1,3115.8,2.4906]
[1720713458950,0.65292715,3116.9,3115.8,2.4906]
[1720713459181,0.65292715,3116.8,3115.5,7.24]
[1720713459500,0.65292715,3116.6,3115.3,5.70054]
[1720713459650,0.65303481,3116.5,3115.3,2.4906]
[1720713459852,0.65303481,3116.5,3115.6,3.20965]
[1720713460428,0.65303481,3116.6,3115.4,0.24906]
[1720713460769,0.65303481,3116.7,3115.7,3.20945]
[1720713460960,0.65303481,3116.8,3115.4,0.24906]
[1720713461154,0.65303481,3116.8,3115.6,3.20964]
[1720713461155,0.65303481,3116.6,3115.6,3.20964]
[1720713461381,0.65303481,3116.5,3115.6,3.876495]
[1720713461694,1.30606963,3116.8,3115.9,3.20933]
[1720713461695,0.65303481,3116.8,3115.9,3.20933]
[1720713461909,0.65303481,3116.9,3115.6,0.666855]
[1720713462195,0.65303481,3116.9,3115.4,0.24906]
[1720713462196,0.65303481,3117.4,3116.4,3.20882]
[1720713462356,0.65303481,3117.3,3116.7,3.20846]
[1720713462557,0.65303481,3117.3,3116.4,3.20877]
[1720713462751,1.63258703,3117.4,3116.4,3.20877]
[1720713463016,0.65303481,3117.4,3116.4,6.4175]
[1720713463319,0.65303481,3117.3,3116.5,0.88668]
[1720713463590,0.65303481,3117.4,3116.5,0.88668]
[1720713463797,0.65303481,3117.3,3116.5,4.09537]
[1720713463990,0.65303481,3117.4,3116.7,3.20849]
[1720713464509,0.65303481,3117.4,3116.6,3.93896]
[1720713464669,0.65303481,3117.4,3116.7,3.2085]
[1720713464873,0.65303481,3117.4,3116.6,0.73041]
[1720713465079,0.65303481,3117.4,3116.6,3.93901]
[1720713465584,0.65303481,3117.4,3116.7,0.393901]
[1720713465820,0.65303481,3117.4,3116.7,3.602401]
[1720713466157,0.65303481,3117.4,3116.4,3.20877]
[1720713466379,0.65303481,3117.3,3116.5,3.20872]
[1720713466573,0.97955222,3117.5,3117.0,0.2]
[1720713466574,0.65303481,3117.4,3117.0,0.2]
[1720713467283,0.97955222,3117.6,3117.0,0.2]
[1720713467284,0.65303481,3117.5,3117.0,0.2]
[1720713467620,0.97955222,3117.6,3117.0,0.2]
[1720713467621,0.65303481,3117.6,3117.0,0.2]
[1720713467971,0.83298442,3117.6,3117.0,0.2]
[1720713468207,0.65303481,3117.5,3117.0,0.2]
[1720713468514,0.65303481,3117.4,3117.0,0.2]
[1720713468687,0.65303481,3117.5,3117.0,0.2]
[1720713469006,0.65303481,3117.4,3117.0,0.2]
[1720713469225,0.65303481,3117.6,3117.0,3.4082]
[1720713469371,0.65303481,3117.8,3117.1,0.34082]
[1720713469719,0.65340817,3117.8,3117.0,0.2]
[1720713469871,0.65340817,3117.7,3117.0,0.2]
[1720713470076,0.65340817,3117.6,3117.0,0.2]
[1720713470269,0.65340817,3117.7,3117.0,0.2]
[1720713470711,0.98011226,3117.9,3117.0,0.4]
[1720713470712,0.65340817,3117.8,3117.0,0.4]
[1720713470918,0.65340817,3117.9,3117.0,0.4]
[1720713471219,0.16335204,3117.8,3117.0,0.4]
[1720713471909,0.65340817,3117.9,3117.0,3.60818]
[1720713472099,0.65340817,3117.9,3117.0,3.60812]
[1720713472303,0.65340817,3117.9,3117.0,6.81627]
[1720713472304,0.65341254,3117.9,3117.0,6.81627]
[1720713472617,0.65341254,3117.9,3117.1,3.2081]
[1720713473329,0.65341254,3117.9,3117.2,3.20798]
[1720713473607,0.98011882,3118.1,3117.3,0.870798]
[1720713473608,0.65341254,3118.1,3117.3,0.870798]
[1720713473909,0.65341254,3118.2,3117.3,4.078688]
[1720713474575,0.65341254,3118.1,3117.3,4.078688]
[1720713475169,0.65341254,3118.2,3117.3,7.286528]
[1720713475607,0.65341254,3118.2,3117.3,4.078638]
[1720713475810,0.65341254,3118.2,3117.4,0.6462638]
[1720713476371,0.98011882,3118.4,3117.4,0.6462638]
[1720713476372,1.1107773,3118.1,3117.4,0.6462638]
[1720713476610,0.98011882,3118.5,3117.4,0.6462638]
[1720713476611,0.65341254,3118.3,3117.4,0.6462638]
[1720713476811,0.65341254,3118.5,3117.5,3.20768]
[1720713476972,1.76410904,3118.4,3117.5,3.20768]
[1720713477175,1.1106965,3118.3,3117.5,4.00093718]
[1720713477672,1.1106965,3118.3,3117.5,0.79325718]
[1720713477869,1.76410904,3118.3,3116.7,2.3561]
[1720713478075,0.98011882,3118.5,3116.7,2.3561]
[1720713478076,1.76410904,3118.2,3116.8,3.20836]
[1720713478313,1.1106965,3118.1,3116.8,3.20835]
[1720713478543,0.1764109,3118.0,3117.0,0.980835]
[1720713478728,1.11083152,3117.9,3117.0,0.980835]
[1720713478927,1.11083152,3117.8,3117.3,0.2]
[1720713479131,0.1764109,3118.0,3117.3,0.2]
[1720713479436,0.65341254,3118.2,3117.3,0.2]
[1720713479437,1.11080395,3117.9,3117.3,0.2]
[1720713479644,1.11080395,3117.8,3117.3,0.2]
[1720713479803,1.11080395,3117.9,3117.3,0.2]
[1720713480242,1.76421649,3117.9,3117.3,0.2]
[1720713480440,0.98011882,3118.1,3117.3,0.2]
[1720713480441,1.76421649,3117.8,3117.3,0.2]
[1720713480739,1.11080395,3117.7,3117.3,0.2]
[1720713481249,0.98011882,3118.0,3117.3,0.2]
[1720713481250,1.11097849,3117.6,3117.3,0.2]
[1720713481474,0.65341254,3118.0,3117.3,0.2]
[1720713481608,1.11082233,3117.9,3117.3,0.2]
[1720713481811,1.30682509,3118.5,3117.3,0.2]
[1720713481812,1.11086506,3117.8,3117.3,0.2]
[1720713482071,1.11086506,3117.7,3117.3,0.2]
[1720713482219,1.11086506,3117.6,3117.3,0.2]
[1720713482423,0.65341254,3118.0,3117.3,0.2]
[1720713482636,1.11086413,3117.9,3117.3,0.2]
[1720713482832,1.11086413,3117.8,3117.3,0.2]
[1720713483020,1.11086413,3117.9,3117.3,0.4]
[1720713483360,1.11086413,3117.8,3117.3,0.4]
[1720713483544,1.76427667,3117.9,3117.3,0.4]
[1720713483856,1.95703965,3117.8,3117.3,0.4]
[1720713484269,0.6522431,3117.6,3117.3,0.4]
[1720713484554,2.08934072,3117.5,3117.3,0.33816328]
[1720713484726,1.11097607,3117.4,3117.3,0.33816328]
[1720713484932,5.29701291,3117.4,3117.3,0.33816328]
[1720713485121,3.5716936,3117.4,3117.3,0.33816328]
[1720713485317,2.57990337,3117.4,3117.3,0.33816328]
[1720713485612,2.90180337,3117.4,3117.3,0.33816328]
[1720713485816,2.08504309,3117.4,3117.3,0.33816328]
[1720713486044,0.65216702,3117.8,3117.3,0.33816328]
[1720713486281,1.3044862,3118.1,3117.3,0.33816328]
[1720713486282,0.65216702,3118.1,3117.3,0.33816328]
[1720713486447,1.11082376,3118.0,3117.4,0.27905633]
[1720713486650,1.11082376,3117.9,3117.4,0.27905633]
[1720713486866,0.65216702,3118.3,3117.4,0.27905633]
[1720713487203,1.11079723,3118.2,3117.4,3.48683633]
[1720713487378,1.1106955,3118.2,3117.4,3.48683633]
[1720713487681,0.65216702,3118.5,3117.5,0.38249996]
[1720713487976,0.65216702,3118.5,3117.4,0.27905633]
[1720713487977,1.11069522,3118.4,3117.4,0.27905633]
[1720713488182,1.76286224,3118.3,3117.4,0.27905633]
[1720713488340,0.65216702,3118.1,3117.3,0.33816328]
[1720713488547,0.65216702,3117.9,3117.3,0.33816328]
[1720713488747,0.65216702,3117.7,3117.3,0.33816328]
[1720713488980,1.11069522,3117.6,3117.3,0.33816328]
[1720713489192,1.15453675,3117.5,3117.3,0.33816328]
[1720713489370,1.76457645,3117.4,3117.3,0.33816328]
[1720713489892,1.27554857,3117.4,3117.3,0.33816328]
[1720713490064,2.58003477,3117.4,3117.3,0.33816328]
[1720713490613,1.27594636,3117.4,3117.3,0.33816328]
[1720713490762,0.47367313,3117.4,3117.3,0.33816328]
[1720713491401,3.2223045,3117.4,3117.3,0.33816328]
[1720713491604,7.5006738,3117.4,3117.3,0.33816328]
[1720713492193,9.95815607,3117.4,3117.3,0.33816328]
[1720713492356,9.95815607,3117.4,3117.3,0.17194541]
[1720713492556,7.99418682,3117.4,3117.3,0.17194541]
[1720713492992,9.95815607,3117.4,3117.3,0.17194541]
[1720713493393,6.9148,3117.3,3117.0,0.6]
[1720713493606,3.53006,3117.1,3115.3,9.6702]
[1720713493760,0.65577239,3116.2,3115.3,2.4302]
[1720713493961,0.65577239,3116.0,3115.3,2.4302]
[1720713494472,0.65577239,3116.1,3115.3,2.4302]
[1720713494672,0.65577239,3116.2,3115.3,2.4302]
[1720713494858,0.65577239,3116.2,3115.4,0.885023]
[1720713495059,0.65577239,3116.1,3115.4,0.885023]
[1720713495496,0.65577239,3116.1,3115.5,3.75965]
[1720713495795,1.31154478,3116.5,3115.6,3.20955]
[1720713495796,0.65577239,3116.2,3115.6,3.20955]
[1720713496029,0.98365858,3116.3,3115.7,0.55]
[1720713496030,0.65577239,3116.3,3115.7,0.55]
[1720713496195,1.31154478,3116.6,3115.8,0.375955]
[1720713496196,0.65614567,3116.5,3115.8,0.375955]
[1720713496363,0.65614567,3116.6,3115.9,0.55]
[1720713496562,0.65614567,3116.5,3115.7,0.55]
[1720713496864,0.65614567,3116.7,3116.0,3.20918]
[1720713497064,0.65614567,3116.7,3116.1,0.55]
[1720713497263,0.98421851,3116.9,3116.3,2.2617]
[1720713497264,0.65614567,3116.8,3116.3,2.2617]
[1720713497494,0.65614567,3116.8,3116.4,0.547067]
[1720713498502,0.65614567,3116.8,3116.2,3.20894]
[1720713498503,0.65614567,3116.6,3115.6,2.4131]
[1720713498663,0.65614567,3116.7,3116.3,3.20892]
[1720713498863,0.65614567,3116.8,3116.3,3.20892]
[1720713499065,0.65614567,3116.9,3116.5,2.3871]
[1720713499804,0.65614567,3117.0,3116.5,5.5958]
[1720713500007,0.65637872,3117.0,3116.5,5.5958]
[1720713500220,0.65637872,3117.0,3116.7,3.20851]
[1720713500363,0.65634335,3117.3,3116.7,6.48110237]
[1720713500713,0.65634335,3117.4,3116.9,3.20828]
[1720713501010,0.65634335,3117.4,3116.8,0.70311024]
[1720713501234,0.65634335,3117.3,3116.6,0.55]
[1720713501442,0.65634335,3117.2,3116.6,3.75859]
[1720713501613,0.65634335,3117.1,3116.6,3.20859]
[1720713501799,0.65634335,3117.0,3116.6,3.20859]
[1720713502000,0.65634335,3117.1,3116.4,3.529642]
[1720713502334,0.65634335,3117.0,3116.5,3.8825712]
[1720713502506,0.65634335,3117.1,3116.5,3.8825712]
[1720713502850,0.65634335,3117.2,3116.7,3.20851]
[1720713503010,0.65634335,3117.2,3116.9,3.20823]
[1720713503011,0.65637341,3117.2,3116.9,3.20823]
[1720713503214,1.64093354,3117.6,3117.1,3.2081]
[1720713503215,0.65637341,3117.4,3117.1,3.2081]
[1720713503448,0.65637341,3117.5,3117.2,0.56687]
[1720713503649,0.65637341,3117.7,3117.2,3.77486]
[1720713504633,0.65637341,3117.7,3117.2,0.56687]
[1720713505035,0.65637341,3117.7,3116.3,3.041]
[1720713505036,0.65637341,3117.6,3116.7,3.20846]
[1720713505347,0.65637341,3117.6,3116.6,2.473]
[1720713505348,0.65637341,3117.4,3116.6,2.473]
[1720713505518,0.65637341,3117.4,3116.7,3.2085]
[1720713505720,0.65637341,3117.4,3116.8,0.56815]
[1720713506153,0.65637341,3117.3,3116.8,0.56815]
[1720713506844,0.65637341,3117.4,3116.8,0.56815]
[1720713508350,0.65637341,3117.4,3116.9,3.20826]
[1720713508555,0.65637341,3117.4,3116.8,0.56815]
[1720713508556,0.65637341,3117.5,3117.2,3.20798]
[1720713508852,0.65637341,3117.5,3117.1,3.20802]
[1720713508853,0.65637341,3117.6,3117.1,3.20802]
[1720713509462,0.65698299,3117.5,3117.1,3.20802]
[1720713509768,0.65698299,3117.5,3117.0,0.55]
[1720713509769,0.65698299,3117.5,3117.2,3.583802]
[1720713509982,0.65698299,3117.5,3117.3,3.20789]
[1720713510128,0.65698299,3117.7,3117.3,3.20789]
[1720713510335,0.98547449,3117.8,3117.4,3.20774]
[1720713510336,0.65698299,3117.8,3117.4,3.20774]
[1720713510666,0.65698299,3117.8,3117.4,3.8868832]
[1720713510967,0.98547449,3117.9,3117.4,3.8868832]
[1720713510968,0.65698299,3117.9,3117.5,6.41527]
[1720713511270,0.65698299,3117.9,3117.5,3.20762]
[1720713511975,0.65698299,3117.9,3117.5,6.41524]
[1720713512327,0.65698299,3118.0,3117.5,6.41524]
[1720713512529,2.64355278,3119.0,3117.6,4.16061832]
[1720713512770,0.65733202,3118.0,3117.6,3.20759]
[1720713513073,0.65733202,3118.1,3117.7,3.20748]
[1720713514374,0.65733202,3118.1,3117.9,3.20726]
[1720713514534,0.65733202,3118.5,3118.0,3.20718]
[1720713514728,0.65733202,3118.5,3118.1,3.20707]
[1720713514971,0.65733202,3118.6,3118.1,3.20707]
[1720713515769,1.97199606,3119.4,3118.0,0.641444]
[1720713515770,0.65733202,3118.7,3118.3,3.20686]
[1720713515947,0.65733531,3118.8,3118.5,3.20661]
[1720713516157,0.65733531,3118.8,3118.5,6.41321]
[1720713516360,0.65733531,3119.0,3118.5,6.41321]
[1720713516662,0.65733531,3119.1,3118.7,3.20639]
[1720713516854,0.65733531,3119.2,3118.8,3.20635]
[1720713517188,0.65733531,3119.2,3118.5,4.075451]
[1720713517385,0.65733531,3119.2,3118.5,3.2066]
[1720713517547,0.98600297,3119.3,3117.8,2.2753]
[1720713517548,0.65733531,3119.0,3117.8,2.2753]
[1720713517748,0.65733531,3118.9,3118.2,3.20697]
[1720713518047,0.65733531,3118.9,3118.1,3.20698]
[1720713518250,0.65733531,3118.8,3117.8,2.2753]
[1720713518593,0.65733531,3118.9,3118.1,3.20699]
[1720713518751,0.65733531,3118.9,3118.5,3.20661]
[1720713519083,0.65733531,3119.1,3118.3,3.20686]
[1720713519286,0.65733531,3119.0,3118.2,3.20688]
[1720713519488,0.65595036,3119.1,3118.2,3.20688]
[1720713519648,0.65595036,3119.1,3118.2,3.84827]
[1720713519993,0.65595036,3119.1,3118.3,3.20685]
[1720713520203,0.65595036,3119.1,3118.2,3.84834]
[1720713520349,0.98392554,3119.2,3118.2,0.64139]
[1720713520350,0.65595036,3119.0,3118.2,0.64139]
[1720713520546,0.98392554,3119.2,3118.2,0.64139]
[1720713520547,0.65595036,3118.9,3118.2,0.64139]
[1720713520749,0.65595036,3118.9,3117.9,3.43475]
[1720713521515,0.65595036,3118.9,3117.9,0.22753]
[1720713521868,0.65595036,3118.9,3117.9,3.43481]
[1720713522069,0.65595036,3118.9,3118.1,3.20707]
[1720713522413,0.1597321,3120.2,3118.1,3.20707]
[1720713522414,0.65565525,3119.1,3118.1,3.20707]
[1720713522713,0.65565525,3119.2,3118.5,3.20666]
[1720713523005,0.65565525,3119.3,3118.5,3.20666]
[1720713523210,0.65565525,3119.4,3118.5,3.20666]
[1720713523410,0.65565525,3119.3,3118.6,2.35362346]
[1720713523612,0.65565525,3119.5,3118.7,0.55602835]
[1720713523817,0.98348287,3119.6,3118.7,0.55602835]
[1720713523818,0.65565525,3119.6,3118.7,0.55602835]
[1720713524190,0.65565525,3119.5,3118.7,0.55602835]
[1720713524595,0.65565525,3119.3,3118.2,5.899707]
[1720713524908,0.98348287,3119.5,3118.5,3.20666]
[1720713524909,0.65565525,3119.4,3118.5,3.20666]
[1720713525110,0.65565525,3119.5,3118.5,6.41332]
[1720713525581,0.65565525,3119.5,3118.6,3.20652]
[1720713525781,0.98348287,3119.7,3118.6,3.20652]
[1720713525782,0.65565525,3119.6,3118.6,3.20652]
[1720713525982,0.65565525,3119.6,3118.7,0.641318]
[1720713526410,0.65565525,3119.6,3118.3,3.7568]
[1720713526628,0.65565525,3119.6,3118.2,2.692807]
[1720713526629,1.76597468,3119.5,3118.2,2.692807]
[1720713526792,0.65565525,3119.3,3118.2,2.692807]
[1720713527129,0.65565525,3119.2,3118.2,0.320707]
[1720713527280,1.11046944,3119.2,3118.2,0.320707]
[1720713527484,0.65565525,3119.3,3118.3,0.6734707]
[1720713527830,0.65565525,3119.4,3118.4,3.20677]
[1720713528183,0.65565525,3119.5,3118.4,3.20677]
[1720713528416,0.65565525,3119.6,3118.4,3.20677]
[1720713528618,1.11036082,3119.5,3118.3,0.6734707]
[1720713528834,1.11036082,3119.5,3118.1,3.20701]
[1720713528835,0.65565525,3119.3,3118.1,3.20701]
[1720713529036,0.65565525,3119.4,3118.1,6.41402]
[1720713529236,1.11041135,3119.3,3118.1,6.41402]
[1720713529441,1.11041135,3119.2,3118.1,6.41402]
[1720713529644,0.65565525,3119.3,3118.1,6.41402]
[1720713529960,1.11044139,3119.2,3118.2,3.903372]
[1720713530143,0.65565525,3119.4,3118.4,3.20672]
[1720713530439,1.3113105,3119.7,3118.5,3.20666]
[1720713530440,1.1104192,3119.3,3118.5,3.20666]
[1720713530735,0.65565525,3119.6,3118.5,5.49156]
[1720713530915,1.76602681,3119.5,3118.5,5.49156]
[1720713531261,1.11037156,3119.4,3118.6,0.869827]
[1720713531634,0.65565525,3119.7,3118.6,0.869827]
[1720713531814,0.65565525,3119.7,3118.6,4.076367]
[1720713532143,1.11029698,3119.6,3118.6,4.076367]
[1720713532299,1.11029698,3119.5,3118.6,4.076367]
[1720713532637,0.98348287,3119.9,3118.7,0.6361267]